[Event "Titled Tuesday Blitz May 4 2021"]
[White "Gritsenko, Nikolai"]
[Black "Crevatin, Leo"]
[WhiteFideId "14112493"]
[BlackFideId "1726307"]
[WhiteElo "2389"]
[BlackElo "2081"]
[Result "1-0"]
[Round "07"]
[TimeControl "180+1"]
[Date "2021.05.04"]
[WhiteClock "0:00:06"]
[BlackClock "0:00:29"]

1. e4 {[%clk 0:03:00]}  c6 {[%clk 0:02:59]} 2. d4 {[%clk 0:03:00]}  d5 {[%clk 0:03:00]} 3. f3 {[%clk 0:03:00]}  Qb6 {[%clk 0:02:58]} 4. Nc3 {[%clk 0:02:58]}  e5 {[%clk 0:02:58]} 5. dxe5 {[%clk 0:02:38]}  Bc5 {[%clk 0:02:57]} 6. Na4 {[%clk 0:02:35]}  Bf2+ {[%clk 0:02:54]} 7. Ke2 {[%clk 0:02:34]}  Qd4 {[%clk 0:02:24]} 8. Qxd4 {[%clk 0:02:33]}  Bxd4 {[%clk 0:02:25]} 9. exd5 {[%clk 0:02:25]}  cxd5 {[%clk 0:02:20]} 10. f4 {[%clk 0:02:13]}  Bd7 {[%clk 0:02:13]} 11. Nf3 {[%clk 0:02:04]}  Bxe5 {[%clk 0:01:59]} 12. Nxe5 {[%clk 0:01:48]}  Bxa4 {[%clk 0:01:58]} 13. Be3 {[%clk 0:01:38]}  Bb5+ {[%clk 0:01:57]} 14. Kf3 {[%clk 0:01:35]}  Bxf1 {[%clk 0:01:56]} 15. Rhxf1 {[%clk 0:01:35]}  f6 {[%clk 0:01:55]} 16. Nd3 {[%clk 0:01:33]}  Kd7 {[%clk 0:01:55]} 17. Rad1 {[%clk 0:01:30]}  Ne7 {[%clk 0:01:53]} 18. Nb4 {[%clk 0:01:26]}  Nbc6 {[%clk 0:01:42]} 19. Nxd5 {[%clk 0:01:25]}  Nxd5 {[%clk 0:01:43]} 20. Rxd5+ {[%clk 0:01:24]}  Ke6 {[%clk 0:01:44]} 21. c4 {[%clk 0:01:17]}  Rad8 {[%clk 0:01:34]} 22. Rfd1 {[%clk 0:01:08]}  b6 {[%clk 0:01:34]} 23. f5+ {[%clk 0:00:57]}  Ke7 {[%clk 0:01:32]} 24. Rxd8 {[%clk 0:00:57]}  Rxd8 {[%clk 0:01:30]} 25. Rxd8 {[%clk 0:00:52]}  Kxd8 {[%clk 0:01:30]} 26. Ke4 {[%clk 0:00:50]}  Kd7 {[%clk 0:01:30]} 27. Bf4 {[%clk 0:00:45]}  g5 {[%clk 0:01:20]} 28. fxg6 {[%clk 0:00:36]}  hxg6 {[%clk 0:01:21]} 29. g4 {[%clk 0:00:36]}  Ke6 {[%clk 0:01:17]} 30. h4 {[%clk 0:00:36]}  Na5 {[%clk 0:01:05]} 31. b3 {[%clk 0:00:34]}  Nc6 {[%clk 0:01:05]} 32. h5 {[%clk 0:00:31]}  gxh5 {[%clk 0:01:04]} 33. gxh5 {[%clk 0:00:31]}  Ne7 {[%clk 0:01:03]} 34. h6 {[%clk 0:00:23]}  f5+ {[%clk 0:01:03]} 35. Ke3 {[%clk 0:00:20]}  Ng6 {[%clk 0:01:03]} 36. b4 {[%clk 0:00:19]}  a5 {[%clk 0:00:55]} 37. c5 {[%clk 0:00:15]}  bxc5 {[%clk 0:00:51]} 38. bxa5 {[%clk 0:00:15]}  Kd7 {[%clk 0:00:51]} 39. a6 {[%clk 0:00:14]}  Kc6 {[%clk 0:00:51]} 40. a7 {[%clk 0:00:13]}  Kb7 {[%clk 0:00:51]} 41. Bb8 {[%clk 0:00:13]}  f4+ {[%clk 0:00:47]} 42. Bxf4 {[%clk 0:00:10]}  Kxa7 {[%clk 0:00:45]} 43. Ke4 {[%clk 0:00:10]}  c4 {[%clk 0:00:42]} 44. Kf5 {[%clk 0:00:10]}  Nh8 {[%clk 0:00:33]} 45. Kf6 {[%clk 0:00:08]}  c3 {[%clk 0:00:30]} 46. Kg7 {[%clk 0:00:08]}  Kb6 {[%clk 0:00:27]} 47. Kxh8 {[%clk 0:00:08]}  Kb5 {[%clk 0:00:27]} 48. Kg7 {[%clk 0:00:08]}  c2 {[%clk 0:00:28]} 49. Bc1 {[%clk 0:00:07]}  Kc4 {[%clk 0:00:28]} 50. h7 {[%clk 0:00:07]}  Kd3 {[%clk 0:00:29]} 51. h8=Q {[%clk 0:00:07]}  Ke2 {[%clk 0:00:30]} 52. Qh6 {[%clk 0:00:07]}  Kd1 {[%clk 0:00:31]} 53. a4 {[%clk 0:00:07]}  Ke2 {[%clk 0:00:29]} 54. Qd2+ {[%clk 0:00:06]} 1-0


[Site "https://www.chess.com"]

[Event "Titled Tuesday Blitz May 4 2021"]
[White "Grunberg, Mihai-Lucian"]
[Black "Mirzoev, Azer"]
[WhiteFideId "1204149"]
[BlackFideId "13400304"]
[WhiteElo "2364"]
[BlackElo "2525"]
[Result "0-1"]
[Round "07"]
[TimeControl "180+1"]
[Date "2021.05.04"]
[WhiteClock "0:00:30"]
[BlackClock "0:00:38"]

1. Nf3 {[%clk 0:03:00]}  d5 {[%clk 0:02:59]} 2. c4 {[%clk 0:03:01]}  d4 {[%clk 0:02:58]} 3. e3 {[%clk 0:03:01]}  Nc6 {[%clk 0:02:57]} 4. d3 {[%clk 0:03:00]}  e5 {[%clk 0:02:55]} 5. a3 {[%clk 0:03:00]}  Nf6 {[%clk 0:02:49]} 6. b4 {[%clk 0:02:58]}  dxe3 {[%clk 0:02:48]} 7. Bxe3 {[%clk 0:02:58]}  e4 {[%clk 0:02:48]} 8. dxe4 {[%clk 0:02:55]}  Qxd1+ {[%clk 0:02:47]} 9. Kxd1 {[%clk 0:02:54]}  Nxe4 {[%clk 0:02:47]} 10. Bd3 {[%clk 0:02:53]}  Bf5 {[%clk 0:02:41]} 11. Ke2 {[%clk 0:02:47]}  O-O-O {[%clk 0:02:22]} 12. Rd1 {[%clk 0:02:40]}  Be7 {[%clk 0:02:14]} 13. Ra2 {[%clk 0:02:16]}  Bf6 {[%clk 0:02:06]} 14. Rc2 {[%clk 0:02:13]}  Bg6 {[%clk 0:02:00]} 15. h4 {[%clk 0:01:45]}  h5 {[%clk 0:01:55]} 16. Ng5 {[%clk 0:01:30]}  Bxg5 {[%clk 0:01:31]} 17. hxg5 {[%clk 0:01:27]}  Rhe8 {[%clk 0:01:28]} 18. Bxe4 {[%clk 0:00:56]}  Bxe4 {[%clk 0:01:16]} 19. Rcd2 {[%clk 0:00:55]}  Bxg2 {[%clk 0:01:09]} 20. Rxd8+ {[%clk 0:00:53]}  Rxd8 {[%clk 0:01:02]} 21. Rxd8+ {[%clk 0:00:51]}  Nxd8 {[%clk 0:01:00]} 22. f3 {[%clk 0:00:45]}  Bh3 {[%clk 0:00:58]} 23. Nc3 {[%clk 0:00:44]}  a6 {[%clk 0:00:52]} 24. Nd5 {[%clk 0:00:40]}  Be6 {[%clk 0:00:51]} 25. Bd4 {[%clk 0:00:38]}  g6 {[%clk 0:00:45]} 26. Ke3 {[%clk 0:00:33]}  Bxd5 {[%clk 0:00:39]} 27. cxd5 {[%clk 0:00:33]}  c6 {[%clk 0:00:38]} 28. Ke4 {[%clk 0:00:30]}  cxd5+ {[%clk 0:00:37]} 29. Kxd5 {[%clk 0:00:30]}  Kd7 {[%clk 0:00:38]} 0-1


[Site "https://www.chess.com"]

[Event "Titled Tuesday Blitz May 4 2021"]
[White "Gusarov, Grigory"]
[Black "Jobava, Baadur"]
[WhiteFideId "24102172"]
[BlackFideId "13601520"]
[WhiteElo "2285"]
[BlackElo "2748"]
[Result "0-1"]
[Round "07"]
[TimeControl "180+1"]
[Date "2021.05.04"]
[WhiteClock "0:00:13"]
[BlackClock "0:00:34"]

1. d4 {[%clk 0:03:00]}  d5 {[%clk 0:02:57]} 2. Nf3 {[%clk 0:02:59]}  c6 {[%clk 0:02:58]} 3. c4 {[%clk 0:03:00]}  Nf6 {[%clk 0:02:58]} 4. Nc3 {[%clk 0:03:00]}  dxc4 {[%clk 0:02:58]} 5. a4 {[%clk 0:03:01]}  a5 {[%clk 0:02:58]} 6. e3 {[%clk 0:03:01]}  Bg4 {[%clk 0:02:58]} 7. Bxc4 {[%clk 0:03:01]}  e6 {[%clk 0:02:59]} 8. h3 {[%clk 0:03:01]}  Bh5 {[%clk 0:02:59]} 9. O-O {[%clk 0:03:02]}  Nbd7 {[%clk 0:03:00]} 10. Qe2 {[%clk 0:03:01]}  Bb4 {[%clk 0:02:59]} 11. Rd1 {[%clk 0:03:01]}  O-O {[%clk 0:02:59]} 12. Bd2 {[%clk 0:03:01]}  Re8 {[%clk 0:02:59]} 13. Be1 {[%clk 0:03:00]}  h6 {[%clk 0:02:57]} 14. Rac1 {[%clk 0:02:59]}  Qe7 {[%clk 0:02:55]} 15. Bd3 {[%clk 0:02:39]}  e5 {[%clk 0:02:39]} 16. g4 {[%clk 0:02:28]}  Nxg4 {[%clk 0:02:39]} 17. Nxe5 {[%clk 0:02:15]}  Ngf6 {[%clk 0:02:07]} 18. Ng4 {[%clk 0:02:14]}  Qe6 {[%clk 0:02:02]} 19. Bc4 {[%clk 0:01:38]}  Nd5 {[%clk 0:01:51]} 20. e4 {[%clk 0:01:14]}  Bxc3 {[%clk 0:01:37]} 21. exd5 {[%clk 0:01:10]}  Qxe2 {[%clk 0:01:36]} 22. Bxe2 {[%clk 0:01:10]}  Rxe2 {[%clk 0:01:25]} 23. Rxc3 {[%clk 0:00:59]}  Rae8 {[%clk 0:01:18]} 24. Kf1 {[%clk 0:00:49]}  cxd5 {[%clk 0:01:06]} 25. Rb1 {[%clk 0:00:42]}  f5 {[%clk 0:00:56]} 26. Ne3 {[%clk 0:00:39]}  Nf6 {[%clk 0:00:51]} 27. Nxf5 {[%clk 0:00:34]}  Ne4 {[%clk 0:00:46]} 28. Re3 {[%clk 0:00:23]}  Rc2 {[%clk 0:00:46]} 29. Ng3 {[%clk 0:00:20]}  Bg6 {[%clk 0:00:38]} 30. Nxe4 {[%clk 0:00:19]}  Bxe4 {[%clk 0:00:39]} 31. f3 {[%clk 0:00:17]}  Rf8 {[%clk 0:00:39]} 32. Rc3 {[%clk 0:00:13]}  Rxc3 {[%clk 0:00:34]} 33. bxc3 {[%clk 0:00:13]}  Bxb1 {[%clk 0:00:34]} 0-1


[Site "https://www.chess.com"]

[Event "Titled Tuesday Blitz May 4 2021"]
[White "Guzman Moneo, Alberto"]
[Black "Kabanov, Nikolai"]
[WhiteFideId "2209616"]
[BlackFideId "4127820"]
[WhiteElo "2157"]
[BlackElo "2376"]
[Result "0-1"]
[Round "07"]
[TimeControl "180+1"]
[Date "2021.05.04"]
[WhiteClock "0:00:01"]
[BlackClock "0:00:03"]

1. e4 {[%clk 0:02:52]}  c5 {[%clk 0:02:58]} 2. Nc3 {[%clk 0:02:51]}  g6 {[%clk 0:02:57]} 3. f4 {[%clk 0:02:49]}  Bg7 {[%clk 0:02:57]} 4. Nf3 {[%clk 0:02:50]}  Nc6 {[%clk 0:02:57]} 5. Bb5 {[%clk 0:02:47]}  d6 {[%clk 0:02:55]} 6. Bxc6+ {[%clk 0:02:43]}  bxc6 {[%clk 0:02:55]} 7. d3 {[%clk 0:02:43]}  Rb8 {[%clk 0:02:54]} 8. O-O {[%clk 0:02:33]}  Nf6 {[%clk 0:02:52]} 9. e5 {[%clk 0:02:25]}  Nd5 {[%clk 0:02:46]} 10. Nxd5 {[%clk 0:02:21]}  cxd5 {[%clk 0:02:46]} 11. d4 {[%clk 0:02:16]}  cxd4 {[%clk 0:02:44]} 12. Qxd4 {[%clk 0:02:10]}  dxe5 {[%clk 0:02:37]} 13. fxe5 {[%clk 0:01:44]}  Qb6 {[%clk 0:02:26]} 14. Be3 {[%clk 0:01:19]}  Qxd4 {[%clk 0:02:22]} 15. Bxd4 {[%clk 0:01:18]}  O-O {[%clk 0:02:18]} 16. b3 {[%clk 0:01:15]}  a6 {[%clk 0:02:12]} 17. Bc5 {[%clk 0:01:06]}  Re8 {[%clk 0:02:09]} 18. Rad1 {[%clk 0:00:53]}  e6 {[%clk 0:01:44]} 19. Bd6 {[%clk 0:00:47]}  Rb7 {[%clk 0:01:44]} 20. Rd4 {[%clk 0:00:34]}  Bd7 {[%clk 0:01:43]} 21. Rf4 {[%clk 0:00:25]}  Bb5 {[%clk 0:01:18]} 22. c4 {[%clk 0:00:21]}  dxc4 {[%clk 0:01:16]} 23. bxc4 {[%clk 0:00:22]}  Bc6 {[%clk 0:01:12]} 24. Ng5 {[%clk 0:00:19]}  Bh6 {[%clk 0:00:54]} 25. h4 {[%clk 0:00:19]}  Bxg5 {[%clk 0:00:50]} 26. hxg5 {[%clk 0:00:20]}  Rc8 {[%clk 0:00:48]} 27. R1f2 {[%clk 0:00:18]}  Ba4 {[%clk 0:00:44]} 28. Kh2 {[%clk 0:00:17]}  Rc6 {[%clk 0:00:33]} 29. c5 {[%clk 0:00:17]}  Bb5 {[%clk 0:00:31]} 30. Kg3 {[%clk 0:00:17]}  Bd3 {[%clk 0:00:29]} 31. Rf6 {[%clk 0:00:14]}  Kg7 {[%clk 0:00:20]} 32. R2f4 {[%clk 0:00:12]}  Bf5 {[%clk 0:00:15]} 33. Kh4 {[%clk 0:00:12]}  h5 {[%clk 0:00:14]} 34. gxh6+ {[%clk 0:00:11]}  Kxh6 {[%clk 0:00:10]} 35. g4 {[%clk 0:00:12]}  Bd3 {[%clk 0:00:10]} 36. g5+ {[%clk 0:00:08]}  Kg7 {[%clk 0:00:10]} 37. Kg3 {[%clk 0:00:03]}  Bf5 {[%clk 0:00:10]} 38. Rh4 {[%clk 0:00:03]}  Rb2 {[%clk 0:00:07]} 39. Ra4 {[%clk 0:00:03]}  Rc2 {[%clk 0:00:04]} 40. a3 {[%clk 0:00:03]}  Rc3+ {[%clk 0:00:04]} 41. Kf4 {[%clk 0:00:03]}  Rb3 {[%clk 0:00:03]} 42. Rb4 {[%clk 0:00:01]}  Rxa3 {[%clk 0:00:03]} 0-1


[Site "https://www.chess.com"]

[Event "Titled Tuesday Blitz May 4 2021"]
[White "Hansen, Soren Bech"]
[Black "Fanha, Paulo"]
[WhiteFideId "1400681"]
[BlackFideId "1902148"]
[WhiteElo "2234"]
[BlackElo "1851"]
[Result "1-0"]
[Round "07"]
[TimeControl "180+1"]
[Date "2021.05.04"]
[WhiteClock "0:00:16"]
[BlackClock "0:00:03"]

1. e4 {[%clk 0:03:00]}  d5 {[%clk 0:02:55]} 2. exd5 {[%clk 0:03:00]}  Qxd5 {[%clk 0:02:56]} 3. Nc3 {[%clk 0:03:00]}  Qd6 {[%clk 0:02:55]} 4. d4 {[%clk 0:03:00]}  c6 {[%clk 0:02:55]} 5. Nf3 {[%clk 0:03:00]}  Nf6 {[%clk 0:02:54]} 6. g3 {[%clk 0:03:00]}  Bg4 {[%clk 0:02:53]} 7. Bg2 {[%clk 0:02:58]}  e6 {[%clk 0:02:49]} 8. Bf4 {[%clk 0:02:56]}  Qd8 {[%clk 0:02:48]} 9. h3 {[%clk 0:02:55]}  Bxf3 {[%clk 0:02:46]} 10. Qxf3 {[%clk 0:02:49]}  Bd6 {[%clk 0:02:41]} 11. O-O-O {[%clk 0:02:47]}  Bxf4+ {[%clk 0:02:40]} 12. Qxf4 {[%clk 0:02:47]}  O-O {[%clk 0:02:35]} 13. Ne4 {[%clk 0:02:42]}  Nxe4 {[%clk 0:02:27]} 14. Bxe4 {[%clk 0:02:41]}  Nd7 {[%clk 0:02:25]} 15. g4 {[%clk 0:02:24]}  Nf6 {[%clk 0:02:18]} 16. Bd3 {[%clk 0:02:21]}  Qa5 {[%clk 0:02:04]} 17. Kb1 {[%clk 0:02:17]}  Nd5 {[%clk 0:01:52]} 18. Qg3 {[%clk 0:02:03]}  Qb4 {[%clk 0:01:46]} 19. Be4 {[%clk 0:01:46]}  a5 {[%clk 0:01:40]} 20. Bxd5 {[%clk 0:01:37]}  cxd5 {[%clk 0:01:34]} 21. f4 {[%clk 0:01:36]}  a4 {[%clk 0:01:29]} 22. a3 {[%clk 0:01:36]}  Qd6 {[%clk 0:01:24]} 23. Qf3 {[%clk 0:01:35]}  b5 {[%clk 0:01:19]} 24. c3 {[%clk 0:01:34]}  Rac8 {[%clk 0:01:13]} 25. f5 {[%clk 0:01:33]}  exf5 {[%clk 0:01:04]} 26. gxf5 {[%clk 0:01:32]}  Qf6 {[%clk 0:01:01]} 27. Qxd5 {[%clk 0:01:20]}  Rfe8 {[%clk 0:00:53]} 28. Rhe1 {[%clk 0:01:18]}  Rxe1 {[%clk 0:00:46]} 29. Rxe1 {[%clk 0:01:18]}  Qh4 {[%clk 0:00:46]} 30. Qe4 {[%clk 0:01:05]}  Qd8 {[%clk 0:00:38]} 31. f6 {[%clk 0:00:53]}  gxf6 {[%clk 0:00:30]} 32. Rg1+ {[%clk 0:00:52]}  Kh8 {[%clk 0:00:26]} 33. Qf5 {[%clk 0:00:46]}  Rc6 {[%clk 0:00:14]} 34. Rg4 {[%clk 0:00:42]}  Re6 {[%clk 0:00:11]} 35. Qxb5 {[%clk 0:00:34]}  Re1+ {[%clk 0:00:08]} 36. Ka2 {[%clk 0:00:34]}  Qe7 {[%clk 0:00:06]} 37. Qb8+ {[%clk 0:00:30]}  Qe8 {[%clk 0:00:06]} 38. Qxe8+ {[%clk 0:00:27]}  Rxe8 {[%clk 0:00:07]} 39. d5 {[%clk 0:00:27]}  Rd8 {[%clk 0:00:07]} 40. Rxa4 {[%clk 0:00:20]}  Rxd5 {[%clk 0:00:05]} 41. Rd4 {[%clk 0:00:20]}  Rc5 {[%clk 0:00:04]} 42. Kb3 {[%clk 0:00:16]}  Kg7 {[%clk 0:00:03]} 43. a4 {[%clk 0:00:16]} 1-0


[Site "https://www.chess.com"]

[Event "Titled Tuesday Blitz May 4 2021"]
[White "Havanecz, Bianka"]
[Black "Belanoff, Ted"]
[WhiteFideId "704814"]
[BlackFideId "2070588"]
[WhiteElo "2328"]
[BlackElo "2173"]
[Result "1-0"]
[Round "07"]
[TimeControl "180+1"]
[Date "2021.05.04"]
[WhiteClock "0:00:21"]
[BlackClock "0:01:48"]

1. d4 {[%clk 0:03:00]}  Nf6 {[%clk 0:02:58]} 2. c4 {[%clk 0:03:01]}  g6 {[%clk 0:02:58]} 3. Nc3 {[%clk 0:03:02]}  d5 {[%clk 0:02:58]} 4. Bf4 {[%clk 0:03:01]}  c6 {[%clk 0:02:58]} 5. Nf3 {[%clk 0:03:01]}  Bg7 {[%clk 0:02:58]} 6. e3 {[%clk 0:02:59]}  Nbd7 {[%clk 0:02:58]} 7. cxd5 {[%clk 0:02:59]}  Nxd5 {[%clk 0:02:58]} 8. Nxd5 {[%clk 0:02:58]}  cxd5 {[%clk 0:02:58]} 9. Bd3 {[%clk 0:02:56]}  Qb6 {[%clk 0:02:58]} 10. Qd2 {[%clk 0:02:38]}  O-O {[%clk 0:02:56]} 11. O-O {[%clk 0:02:38]}  f6 {[%clk 0:02:56]} 12. Bg3 {[%clk 0:02:28]}  e5 {[%clk 0:02:45]} 13. dxe5 {[%clk 0:02:29]}  fxe5 {[%clk 0:02:43]} 14. e4 {[%clk 0:02:27]}  d4 {[%clk 0:02:39]} 15. Bc4+ {[%clk 0:02:23]}  Kh8 {[%clk 0:02:39]} 16. Ng5 {[%clk 0:02:23]}  Qf6 {[%clk 0:02:36]} 17. Bh4 {[%clk 0:02:15]}  Qf4 {[%clk 0:02:31]} 18. Qxf4 {[%clk 0:02:05]}  exf4 {[%clk 0:02:25]} 19. Nf7+ {[%clk 0:02:00]}  Kg8 {[%clk 0:02:22]} 20. Nd6+ {[%clk 0:01:56]}  Kh8 {[%clk 0:02:21]} 21. Be7 {[%clk 0:01:52]}  Ne5 {[%clk 0:02:21]} 22. Bxf8 {[%clk 0:01:48]}  Bxf8 {[%clk 0:02:20]} 23. Nf7+ {[%clk 0:01:42]}  Nxf7 {[%clk 0:02:20]} 24. Bxf7 {[%clk 0:01:43]}  Kg7 {[%clk 0:02:20]} 25. Bd5 {[%clk 0:01:42]}  Rb8 {[%clk 0:02:17]} 26. Rac1 {[%clk 0:01:41]}  Bd6 {[%clk 0:02:15]} 27. Rc4 {[%clk 0:01:32]}  Be5 {[%clk 0:02:11]} 28. Rfc1 {[%clk 0:01:25]}  d3 {[%clk 0:02:09]} 29. Rxc8 {[%clk 0:01:01]}  d2 {[%clk 0:01:57]} 30. R1c7+ {[%clk 0:00:54]}  Bxc7 {[%clk 0:01:57]} 31. Rxc7+ {[%clk 0:00:53]}  Kf6 {[%clk 0:01:55]} 32. Bb3 {[%clk 0:00:51]}  Rd8 {[%clk 0:01:51]} 33. Bd1 {[%clk 0:00:50]}  Ke5 {[%clk 0:01:51]} 34. Kf1 {[%clk 0:00:37]}  g5 {[%clk 0:01:50]} 35. f3 {[%clk 0:00:35]}  h5 {[%clk 0:01:49]} 36. Rxb7 {[%clk 0:00:33]}  g4 {[%clk 0:01:49]} 37. Rxa7 {[%clk 0:00:30]}  gxf3 {[%clk 0:01:49]} 38. gxf3 {[%clk 0:00:31]}  Kd4 {[%clk 0:01:49]} 39. Ke2 {[%clk 0:00:30]}  Rg8 {[%clk 0:01:49]} 40. Rd7+ {[%clk 0:00:23]}  Kc4 {[%clk 0:01:48]} 41. Bb3+ {[%clk 0:00:21]} 1-0


[Site "https://www.chess.com"]

[Event "Titled Tuesday Blitz May 4 2021"]
[White "Iljushina, Olga"]
[Black "Shuvalov, Evgenij"]
[WhiteFideId "4152280"]
[BlackFideId "4187237"]
[WhiteElo "1967"]
[BlackElo "2163"]
[Result "0-1"]
[Round "07"]
[TimeControl "180+1"]
[Date "2021.05.04"]
[WhiteClock "0:00:01"]
[BlackClock "0:00:07"]

1. d4 {[%clk 0:03:00]}  Nf6 {[%clk 0:02:46]} 2. c4 {[%clk 0:03:00]}  g6 {[%clk 0:02:46]} 3. Nc3 {[%clk 0:02:59]}  d5 {[%clk 0:02:45]} 4. Bg5 {[%clk 0:02:57]}  Bg7 {[%clk 0:02:38]} 5. Bxf6 {[%clk 0:02:38]}  Bxf6 {[%clk 0:02:39]} 6. cxd5 {[%clk 0:02:36]}  c6 {[%clk 0:02:37]} 7. e4 {[%clk 0:02:29]}  O-O {[%clk 0:02:31]} 8. Be2 {[%clk 0:02:14]}  Qb6 {[%clk 0:02:06]} 9. Nf3 {[%clk 0:01:58]}  Qxb2 {[%clk 0:01:59]} 10. Rc1 {[%clk 0:01:58]}  Bg4 {[%clk 0:01:49]} 11. O-O {[%clk 0:01:50]}  Rd8 {[%clk 0:01:41]} 12. h3 {[%clk 0:01:37]}  Bxf3 {[%clk 0:01:35]} 13. Bxf3 {[%clk 0:01:37]}  cxd5 {[%clk 0:01:15]} 14. e5 {[%clk 0:01:30]}  Bg5 {[%clk 0:01:06]} 15. Rc2 {[%clk 0:01:28]}  Qa3 {[%clk 0:01:02]} 16. Nb5 {[%clk 0:01:14]}  Qa5 {[%clk 0:00:52]} 17. Nc7 {[%clk 0:01:07]}  Nc6 {[%clk 0:00:52]} 18. Nxa8 {[%clk 0:01:05]}  Rxa8 {[%clk 0:00:46]} 19. Rc5 {[%clk 0:01:05]}  Qb4 {[%clk 0:00:43]} 20. Bxd5 {[%clk 0:00:52]}  Rd8 {[%clk 0:00:13]} 21. Qb3 {[%clk 0:00:22]}  Qxd4 {[%clk 0:00:12]} 22. Bxf7+ {[%clk 0:00:21]}  Kf8 {[%clk 0:00:11]} 23. Rc2 {[%clk 0:00:19]}  Nxe5 {[%clk 0:00:09]} 24. Be6 {[%clk 0:00:18]}  Rd6 {[%clk 0:00:08]} 25. Bg8 {[%clk 0:00:17]}  Kg7 {[%clk 0:00:07]} 26. Re1 {[%clk 0:00:14]}  Rb6 {[%clk 0:00:07]} 27. Qd5 {[%clk 0:00:13]}  Qxd5 {[%clk 0:00:06]} 28. Bxd5 {[%clk 0:00:13]}  Bf6 {[%clk 0:00:07]} 29. f4 {[%clk 0:00:12]}  Nd7 {[%clk 0:00:05]} 30. Rc7 {[%clk 0:00:11]}  Rd6 {[%clk 0:00:05]} 31. Bxb7 {[%clk 0:00:10]}  Nb6 {[%clk 0:00:04]} 32. Ba6 {[%clk 0:00:08]}  Nd5 {[%clk 0:00:04]} 33. Rxa7 {[%clk 0:00:08]}  Bd4+ {[%clk 0:00:03]} 34. Kh2 {[%clk 0:00:07]}  Bxa7 {[%clk 0:00:04]} 35. Bc4 {[%clk 0:00:06]}  Bc5 {[%clk 0:00:03]} 36. Bxd5 {[%clk 0:00:06]}  Rxd5 {[%clk 0:00:04]} 37. Rc1 {[%clk 0:00:06]}  Bd6 {[%clk 0:00:04]} 38. Rc4 {[%clk 0:00:06]}  g5 {[%clk 0:00:03]} 39. g3 {[%clk 0:00:06]}  Rd2+ {[%clk 0:00:03]} 40. Kg1 {[%clk 0:00:05]}  Rxa2 {[%clk 0:00:03]} 41. fxg5 {[%clk 0:00:05]}  Bxg3 {[%clk 0:00:03]} 42. Rg4 {[%clk 0:00:04]}  Bd6 {[%clk 0:00:03]} 43. h4 {[%clk 0:00:04]}  Kg6 {[%clk 0:00:04]} 44. Re4 {[%clk 0:00:04]}  Ra1+ {[%clk 0:00:04]} 45. Kg2 {[%clk 0:00:03]}  Ra2+ {[%clk 0:00:05]} 46. Kf3 {[%clk 0:00:03]}  Ra3+ {[%clk 0:00:06]} 47. Kg2 {[%clk 0:00:01]}  Rb3 {[%clk 0:00:07]} 0-1


[Site "https://www.chess.com"]

[Event "Titled Tuesday Blitz May 4 2021"]
[White "Injac, Teodora"]
[Black "Shipov, Sergei"]
[WhiteFideId "932400"]
[BlackFideId "4113624"]
[WhiteElo "2308"]
[BlackElo "2738"]
[Result "0-1"]
[Round "07"]
[TimeControl "180+1"]
[Date "2021.05.04"]
[WhiteClock "0:00:04"]
[BlackClock "0:00:07"]

1. d4 {[%clk 0:03:00]}  Nf6 {[%clk 0:02:58]} 2. Nf3 {[%clk 0:03:01]}  g6 {[%clk 0:02:56]} 3. Nbd2 {[%clk 0:03:00]}  d5 {[%clk 0:02:55]} 4. e3 {[%clk 0:03:00]}  Bg7 {[%clk 0:02:54]} 5. b4 {[%clk 0:03:00]}  a5 {[%clk 0:02:53]} 6. b5 {[%clk 0:03:00]}  a4 {[%clk 0:02:54]} 7. Ba3 {[%clk 0:02:58]}  O-O {[%clk 0:02:47]} 8. c4 {[%clk 0:02:57]}  c6 {[%clk 0:02:41]} 9. Be2 {[%clk 0:02:50]}  Bf5 {[%clk 0:02:19]} 10. O-O {[%clk 0:02:47]}  Nbd7 {[%clk 0:02:19]} 11. bxc6 {[%clk 0:02:45]}  bxc6 {[%clk 0:02:19]} 12. Rc1 {[%clk 0:02:38]}  Re8 {[%clk 0:02:13]} 13. Nb1 {[%clk 0:02:30]}  Ne4 {[%clk 0:02:08]} 14. Bd3 {[%clk 0:01:46]}  Qa5 {[%clk 0:02:01]} 15. Qc2 {[%clk 0:01:41]}  Nb6 {[%clk 0:01:51]} 16. Nbd2 {[%clk 0:01:06]}  Nxd2 {[%clk 0:01:24]} 17. Nxd2 {[%clk 0:01:06]}  Bxd3 {[%clk 0:01:20]} 18. Qxd3 {[%clk 0:01:06]}  Qa6 {[%clk 0:00:54]} 19. Qc2 {[%clk 0:01:03]}  Rac8 {[%clk 0:00:50]} 20. Rb1 {[%clk 0:01:01]}  e5 {[%clk 0:00:39]} 21. dxe5 {[%clk 0:01:00]}  Bxe5 {[%clk 0:00:38]} 22. Bc5 {[%clk 0:00:38]}  Nxc4 {[%clk 0:00:37]} 23. Nxc4 {[%clk 0:00:38]}  dxc4 {[%clk 0:00:37]} 24. Rfc1 {[%clk 0:00:36]}  c3 {[%clk 0:00:37]} 25. g3 {[%clk 0:00:35]}  Red8 {[%clk 0:00:35]} 26. Rd1 {[%clk 0:00:32]}  Qc4 {[%clk 0:00:34]} 27. Be7 {[%clk 0:00:28]}  Rxd1+ {[%clk 0:00:32]} 28. Rxd1 {[%clk 0:00:28]}  Rb8 {[%clk 0:00:33]} 29. Bg5 {[%clk 0:00:23]}  Rb2 {[%clk 0:00:27]} 30. Bh6 {[%clk 0:00:21]}  Rb8 {[%clk 0:00:19]} 31. Rd7 {[%clk 0:00:10]}  a3 {[%clk 0:00:17]} 32. Kg2 {[%clk 0:00:07]}  Bf6 {[%clk 0:00:16]} 33. Rd3 {[%clk 0:00:03]}  Qc5 {[%clk 0:00:11]} 34. h4 {[%clk 0:00:02]}  Qf5 {[%clk 0:00:10]} 35. Bf4 {[%clk 0:00:01]}  Re8 {[%clk 0:00:08]} 36. f3 {[%clk 0:00:01]}  Qc5 {[%clk 0:00:08]} 37. Qd1 {[%clk 0:00:01]}  h5 {[%clk 0:00:08]} 38. Qc1 {[%clk 0:00:02]}  Qc4 {[%clk 0:00:08]} 39. Qc2 {[%clk 0:00:03]}  Rb8 {[%clk 0:00:08]} 40. Rd7 {[%clk 0:00:02]}  Rb2 {[%clk 0:00:08]} 41. Kh3 {[%clk 0:00:03]}  Rxc2 {[%clk 0:00:08]} 42. Bd6 {[%clk 0:00:04]}  Qe6+ {[%clk 0:00:07]} 0-1


[Site "https://www.chess.com"]

[Event "Titled Tuesday Blitz May 4 2021"]
[White "Ivanov, Mike"]
[Black "Mickiewicz, Piotr"]
[WhiteFideId "2613158"]
[BlackFideId "1114891"]
[WhiteElo "2197"]
[BlackElo "2263"]
[Result "0-1"]
[Round "07"]
[TimeControl "180+1"]
[Date "2021.05.04"]
[WhiteClock "0:00:01"]
[BlackClock "0:00:20"]

1. e4 {[%clk 0:02:54]}  c5 {[%clk 0:02:59]} 2. Nf3 {[%clk 0:02:54]}  d6 {[%clk 0:03:00]} 3. d4 {[%clk 0:02:54]}  cxd4 {[%clk 0:03:01]} 4. Qxd4 {[%clk 0:02:54]}  Nc6 {[%clk 0:02:59]} 5. Qe3 {[%clk 0:02:54]}  g6 {[%clk 0:02:56]} 6. Be2 {[%clk 0:02:54]}  Bg7 {[%clk 0:02:57]} 7. O-O {[%clk 0:02:54]}  Nf6 {[%clk 0:02:57]} 8. h3 {[%clk 0:02:54]}  O-O {[%clk 0:02:56]} 9. Rd1 {[%clk 0:02:54]}  Nd7 {[%clk 0:02:38]} 10. Nc3 {[%clk 0:02:51]}  a6 {[%clk 0:02:35]} 11. Nd5 {[%clk 0:02:50]}  e6 {[%clk 0:02:27]} 12. Nc3 {[%clk 0:02:49]}  Qc7 {[%clk 0:02:05]} 13. Qd2 {[%clk 0:02:12]}  Nc5 {[%clk 0:02:05]} 14. Qf4 {[%clk 0:01:59]}  b5 {[%clk 0:01:17]} 15. Bf1 {[%clk 0:01:10]}  b4 {[%clk 0:01:13]} 16. Ne2 {[%clk 0:01:10]}  Rd8 {[%clk 0:01:05]} 17. Qh4 {[%clk 0:01:09]}  f6 {[%clk 0:00:58]} 18. Ng3 {[%clk 0:00:50]}  Bb7 {[%clk 0:00:52]} 19. Be3 {[%clk 0:00:31]}  Ne5 {[%clk 0:00:51]} 20. Nxe5 {[%clk 0:00:29]}  dxe5 {[%clk 0:00:51]} 21. Bc4 {[%clk 0:00:24]}  Kf7 {[%clk 0:00:41]} 22. b3 {[%clk 0:00:21]}  Qc6 {[%clk 0:00:29]} 23. Qg4 {[%clk 0:00:19]}  h5 {[%clk 0:00:22]} 24. Nxh5 {[%clk 0:00:08]}  gxh5 {[%clk 0:00:23]} 25. Qxh5+ {[%clk 0:00:08]}  Kg8 {[%clk 0:00:23]} 26. Qg6 {[%clk 0:00:05]}  Qxe4 {[%clk 0:00:21]} 27. Qxe4 {[%clk 0:00:01]}  Nxe4 {[%clk 0:00:20]} 0-1


[Site "https://www.chess.com"]